[Event "7th Summer Cup 2024"]
[Site "Rhodes"]
[Date "2024.06.29"]
[Round "8.1"]
[White "Ladopoulos, Dimitrios"]
[Black "Kotronias, Vasilios"]
[Result "1/2-1/2"]
[ECO "A49"]
[WhiteElo "2374"]
[BlackElo "2415"]
[Annotator "RC"]
[PlyCount "66"]
[EventDate "2024.06.21"]
[EventType "swiss"]
[EventCountry "GRE"]
[SourceTitle "playchess.com"]
[Source "ChessBase"]
[SourceQuality "1"]
[TimeControl "40/5400+30:900+30"]

1. Nf3 {[%emt 0:06:19]} Nf6 {[%emt 0:00:10]} 2. b3 {[%emt 0:01:32]} g6 {[%emt 0:00:07]} 3. Bb2 {[%emt 0:00:03]} Bg7 {[%emt 0:00:04]} 4. g3 {[%emt 0:00:08]} d6 {[%emt 0:00:09]} 5. d4 {[%emt 0:00:13]} c5 {[%emt 0:00:18]} 6. Bg2 {[%emt 0:01:23]} cxd4 {[%emt 0:00:38]} 7. Nxd4 {[%emt 0:01:15]} d5 {[%emt 0:00:06]} 8. O-O {[%emt 0:00:23]} O-O {[%emt 0:00:06]} 9. c4 {[%emt 0:00:08]} dxc4 {[%emt 0:00:15]} 10. bxc4 {[%emt 0:01:34]} Qb6 {[%emt 0:00:09]} 11. Qb3 {[%emt 0:00:07]} Nfd7 {[%emt 0:00:18]} 12. Rd1 {[%emt 0:09:02]} Nc6 {[%emt 0:02:48]} 13. Nxc6 {[%emt 0:16:08]} Bxb2 {[%emt 0:00:07]} 14. Nxe7+ {[%emt 0:00:04]} Kg7 {[%emt 0:03:57]} 15. Nxc8 {[%emt 0:00:17]} Raxc8 {[%emt 0:01:11]} 16. Rxd7 {[%emt 0:01:08]} Bxa1 {[%emt 0:00:16]} 17. Bxb7 {[%emt 0:09:54]} Rcd8 {[%emt 0:07:02]} 18. Qxb6 {[%emt 0:01:41]} axb6 {[%emt 0:00:23]} 19. Rd5 {[%emt 0:01:41]} Rfe8 {[%emt 0:07:11]} 20. e3 {[%emt 0:07:49]} Rxd5 {[%emt 0:01:45]} 21. Bxd5 {[%emt 0:07:52]} Re7 {[%emt 0:00:13]} 22. a4 {[%emt 0:00:10]} Ra7 {[%emt 0:00:49]} 23. Bc6 {[%emt 0:01:24]} Rc7 {[%emt 0:00:34]} 24. Bb5 {[%emt 0:00:18]} Rc8 {[%emt 0:00:10]} 25. Kf1 {[%emt 0:00:19]} f5 {[%emt 0:02:09]} 26. h4 {[%emt 0:01:58]} h6 {[%emt 0:00:32]} 27. Nd2 {[%emt 0:00:44]} Bc3 {[%emt 0:01:09]} 28. Nb3 {[%emt 0:01:31]} Kf6 {[%emt 0:00:52]} 29. Ke2 {[%emt 0:00:14]} g5 {[%emt 0:06:20]} 30. hxg5+ {[%emt 0:00:09]} hxg5 {[%emt 0:00:03]} 31. Kd3 {[%emt 0:02:22]} Be1 {[%emt 0:00:47]} 32. Ke2 {[%emt 0:00:08]} Bc3 {[%emt 0:02:19]} 33. Kd3 {[%emt 0:00:11]} Be1 {[%emt 1:04:03]} 1/2-1/2

[Event "7th Summer Cup 2024"]
[Site "Rhodes"]
[Date "2024.06.29"]
[Round "8.2"]
[White "Nasuta, Grzegorz"]
[Black "Budisavljevic, Luka"]
[Result "1-0"]
[ECO "B45"]
[WhiteElo "2541"]
[BlackElo "2468"]
[Annotator "RC"]
[PlyCount "107"]
[EventDate "2024.06.21"]
[EventType "swiss"]
[EventCountry "GRE"]
[SourceTitle "playchess.com"]
[Source "ChessBase"]
[SourceQuality "1"]
[TimeControl "40/5400+30:900+30"]

1. e4 {[%emt 0:04:31]} c5 {[%emt 0:04:08]} 2. Nf3 {[%emt 0:00:04]} e6 {[%emt 0:00:04]} 3. d4 {[%emt 0:00:19]} cxd4 {[%emt 0:00:06]} 4. Nxd4 {[%emt 0:00:06]} Nc6 {[%emt 0:00:16]} 5. Nc3 {[%emt 0:00:28]} Nf6 {[%emt 0:00:07]} 6. Nxc6 {[%emt 0:00:25]} bxc6 {[%emt 0:00:05]} 7. e5 {[%emt 0:00:06]} Nd5 {[%emt 0:00:06]} 8. Ne4 {[%emt 0:00:06]} Qc7 {[%emt 0:00:12]} 9. f4 {[%emt 0:00:06]} Qb6 {[%emt 0:00:37]} 10. c4 {[%emt 0:06:27]} Bb4+ {[%emt 0:00:18]} 11. Ke2 {[%emt 0:00:08]} f5 {[%emt 0:00:23]} 12. Nf2 {[%emt 0:02:09]} Ba6 {[%emt 0:00:33]} 13. Kf3 {[%emt 0:00:05]} Ne7 {[%emt 0:00:15]} 14. Be3 {[%emt 0:00:10]} Bc5 {[%emt 0:00:06]} 15. Bxc5 {[%emt 0:00:05]} Qxc5 {[%emt 0:00:05]} 16. Qa4 {[%emt 0:00:13]} Bb7 {[%emt 0:06:13]} 17. h4 {[%emt 0:00:34]} Qb6 {[%emt 0:15:44]} 18. Qa3 {[%emt 0:00:29]} c5+ {[%emt 0:00:35]} 19. Kg3 {[%emt 0:00:08]} O-O {[%emt 0:07:02]} 20. Rd1 {[%emt 0:01:06]} Rfd8 {[%emt 0:00:57]} 21. Be2 {[%emt 0:01:35]} Rac8 {[%emt 0:17:03]} 22. Rd2 {[%emt 0:13:41]} Rc6 {[%emt 0:11:12]} 23. Rhd1 {[%emt 0:19:54]} Qc7 {[%emt 0:01:14]} 24. Qe3 {[%emt 0:11:00]} Kf7 {[%emt 0:03:28]} 25. b3 {[%emt 0:02:34]} Ra6 {[%emt 0:02:45]} 26. Nd3 {[%emt 0:04:40]} Ra5 {[%emt 0:00:54]} 27. Nc1 {[%emt 0:09:02]} Nc8 {[%emt 0:03:18]} 28. Bf3 {[%emt 0:02:21]} Bxf3 {[%emt 0:01:25]} 29. Qxf3 {[%emt 0:00:02]} Kf8 {[%emt 0:00:50]} 30. Ne2 {[%emt 0:03:56]} Ra6 {[%emt 0:00:12]} 31. Nc3 {[%emt 0:00:31]} Rb6 {[%emt 0:00:19]} 32. Rd3 {[%emt 0:03:02]} a6 {[%emt 0:01:53]} 33. R1d2 {[%emt 0:01:15]} Rc6 {[%emt 0:01:16]} 34. Qd1 {[%emt 0:06:39]} d6 {[%emt 0:01:29]} 35. Kh3 {[%emt 0:03:06]} h6 {[%emt 0:00:38]} 36. Na4 {[%emt 0:03:14]} Rd7 {[%emt 0:03:09]} 37. h5 {[%emt 0:00:38]} Rd8 {[%emt 0:02:52]} 38. Kh2 {[%emt 0:02:46]} Kg8 {[%emt 0:00:46]} 39. Qf3 {[%emt 0:00:56]} Kh7 {[%emt 0:03:30]} 40. Qd1 {[%emt 0:00:00]} Qe7 {[%emt 0:00:00]} 41. Kg1 {[%emt 0:06:48]} Qc7 {[%emt 0:02:44]} 42. Kf1 {[%emt 0:01:32]} Rd7 {[%emt 0:01:20]} 43. Qe1 {[%emt 0:02:22]} Re7 {[%emt 0:02:28]} 44. Qg3 {[%emt 0:01:14]} g5 {[%emt 0:06:21]} 45. hxg6+ {[%emt 0:00:56]} Kg7 {[%emt 0:00:03]} 46. Qh4 {[%emt 0:00:58]} Kxg6 {[%emt 0:00:37]} 47. Qf6+ {[%emt 0:00:50]} Kh7 {[%emt 0:00:01]} 48. Rh3 {[%emt 0:00:08]} Kg8 {[%emt 0:00:10]} 49. Rxh6 {[%emt 0:01:32]} Rg7 {[%emt 0:00:01]} 50. Qh4 {[%emt 0:01:35]} Kf7 {[%emt 0:00:48]} 51. Rh8 {[%emt 0:01:10]} Rg6 {[%emt 0:00:24]} 52. Qh7+ {[%emt 0:00:33]} Rg7 {[%emt 0:00:05]} 53. Qh5+ {[%emt 0:00:03]} Ke7 {[%emt 0:00:04]} 54. Qe8# {[%emt 0:04:12]} 1-0

[Event "7th Summer Cup 2024"]
[Site "Rhodes"]
[Date "2024.06.29"]
[Round "8.4"]
[White "Witczak, Borys"]
[Black "Papasimakopoulos, Alexandros"]
[Result "1-0"]
[ECO "E39"]
[WhiteElo "1937"]
[BlackElo "2375"]
[Annotator "RC"]
[PlyCount "95"]
[EventDate "2024.06.21"]
[EventType "swiss"]
[EventCountry "GRE"]
[SourceTitle "playchess.com"]
[Source "ChessBase"]
[SourceQuality "1"]
[TimeControl "40/5400+30:900+30"]

1. d4 {[%emt 0:00:28]} Nf6 {[%emt 0:00:18]} 2. c4 {[%emt 0:00:05]} e6 {[%emt 0:01:24]} 3. Nc3 {[%emt 0:00:24]} Bb4 {[%emt 0:00:34]} 4. Qc2 {[%emt 0:00:37]} c5 {[%emt 0:01:32]} 5. dxc5 {[%emt 0:00:33]} O-O {[%emt 0:00:10]} 6. a3 {[%emt 0:00:18]} Bxc5 {[%emt 0:00:08]} 7. Nf3 {[%emt 0:01:22]} b6 {[%emt 0:01:32]} 8. Bf4 {[%emt 0:01:17]} Bb7 {[%emt 0:06:12]} 9. Rd1 {[%emt 0:01:57]} d5 {[%emt 0:06:29]} 10. e4 {[%emt 0:14:20]} Nbd7 {[%emt 0:00:08]} 11. b4 {[%emt 0:07:28]} dxe4 {[%emt 0:03:27]} 12. Ne5 {[%emt 0:01:55]} Be7 {[%emt 0:01:13]} 13. Qa4 {[%emt 0:04:22]} Qb8 {[%emt 0:01:28]} 14. Ng6 {[%emt 0:06:43]} Qd8 {[%emt 0:01:15]} 15. Nxe7+ {[%emt 0:00:51]} Qxe7 {[%emt 0:00:05]} 16. Bd6 {[%emt 0:00:11]} Qd8 {[%emt 0:00:06]} 17. c5 {[%emt 0:02:50]} Qc8 {[%emt 0:03:43]} 18. Bxf8 {[%emt 0:05:58]} Kxf8 {[%emt 0:00:32]} 19. Bb5 {[%emt 0:06:15]} Ne5 {[%emt 0:00:06]} 20. c6 {[%emt 0:03:18]} Nxc6 {[%emt 0:03:27]} 21. Bxc6 {[%emt 0:00:59]} Bxc6 {[%emt 0:00:11]} 22. b5 {[%emt 0:00:23]} Bb7 {[%emt 0:02:55]} 23. Qb4+ {[%emt 0:02:07]} Kg8 {[%emt 0:00:04]} 24. O-O {[%emt 0:00:53]} Qc7 {[%emt 0:00:32]} 25. Ne2 {[%emt 0:11:35]} Qe5 {[%emt 0:05:52]} 26. a4 {[%emt 0:05:40]} Bd5 {[%emt 0:06:32]} 27. Qc3 {[%emt 0:01:29]} Qd6 {[%emt 0:02:32]} 28. Rc1 {[%emt 0:01:21]} h5 {[%emt 0:00:17]} 29. Qc7 {[%emt 0:03:05]} Qb4 {[%emt 0:02:41]} 30. Nc3 {[%emt 0:00:51]} Bc4 {[%emt 0:13:09]} 31. Rfe1 {[%emt 0:00:20]} Bd3 {[%emt 0:00:10]} 32. Qb7 {[%emt 0:00:55]} Rd8 {[%emt 0:03:48]} 33. Qxa7 {[%emt 0:04:51]} Qd6 {[%emt 0:04:58]} 34. Nd1 {[%emt 0:00:37]} Nd5 {[%emt 0:02:10]} 35. g3 {[%emt 0:05:05]} f5 {[%emt 0:07:28]} 36. Ne3 {[%emt 0:00:49]} f4 {[%emt 0:00:00]} 37. Nxd5 {[%emt 0:00:19]} exd5 {[%emt 0:00:01]} 38. Qc7 {[%emt 0:00:29]} f3 {[%emt 0:04:19]} 39. Qxd6 {[%emt 0:00:12]} Rxd6 {[%emt 0:00:07]} 40. Rc6 {[%emt 0:00:00]} Rd8 {[%emt 0:00:00]} 41. Rxb6 {[%emt 0:05:21]} d4 {[%emt 0:05:56]} 42. a5 {[%emt 0:00:52]} Be2 {[%emt 0:00:34]} 43. a6 {[%emt 0:01:39]} d3 {[%emt 0:00:16]} 44. a7 {[%emt 0:00:31]} d2 {[%emt 0:00:07]} 45. Rd1 {[%emt 0:00:03]} e3 {[%emt 0:04:21]} 46. Rb8 {[%emt 0:00:27]} Bxd1 {[%emt 0:01:36]} 47. Rxd8+ {[%emt 0:00:18]} Kh7 {[%emt 0:00:06]} 48. fxe3 {[%emt 0:00:20]} 1-0

[Event "7th Summer Cup 2024"]
[Site "Rhodes"]
[Date "2024.06.29"]
[Round "8.5"]
[White "Sibashvili, Giorgi"]
[Black "Ballas, Athanasios-panagioti"]
[Result "1-0"]
[ECO "A23"]
[WhiteElo "2423"]
[BlackElo "2151"]
[Annotator "RC"]
[PlyCount "53"]
[EventDate "2024.06.21"]
[EventType "swiss"]
[EventCountry "GRE"]
[SourceTitle "playchess.com"]
[Source "ChessBase"]
[SourceQuality "1"]
[TimeControl "40/5400+30:900+30"]

1. c4 {[%emt 0:07:44]} e5 {[%emt 0:00:14]} 2. g3 {[%emt 0:00:13]} Nf6 {[%emt 0:00:14]} 3. Bg2 {[%emt 0:00:12]} Bc5 {[%emt 0:00:28]} 4. Nc3 {[%emt 0:00:57]} c6 {[%emt 0:00:14]} 5. Nf3 {[%emt 0:01:54]} e4 {[%emt 0:01:24]} 6. Nh4 {[%emt 0:06:14]} d5 {[%emt 0:00:07]} 7. cxd5 {[%emt 0:00:12]} cxd5 {[%emt 0:00:06]} 8. d3 {[%emt 0:00:15]} Ng4 {[%emt 0:04:13]} 9. O-O {[%emt 0:00:36]} g5 {[%emt 0:00:08]} 10. d4 {[%emt 0:00:49]} Bb6 {[%emt 0:08:13]} 11. Nf3 {[%emt 0:00:38]} h6 {[%emt 0:36:54]} 12. Ne5 {[%emt 0:00:29]} Nxe5 {[%emt 0:08:08]} 13. dxe5 {[%emt 0:00:08]} Be6 {[%emt 0:00:04]} 14. Kh1 {[%emt 0:00:57]} Nc6 {[%emt 0:04:06]} 15. f4 {[%emt 0:02:16]} exf3 {[%emt 0:00:09]} 16. exf3 {[%emt 0:00:51]} Qd7 {[%emt 0:03:11]} 17. f4 {[%emt 0:03:20]} gxf4 {[%emt 0:00:27]} 18. Nxd5 {[%emt 0:03:19]} Bxd5 {[%emt 0:02:25]} 19. Qxd5 {[%emt 0:01:16]} Qxd5 {[%emt 0:08:33]} 20. Bxd5 {[%emt 0:00:21]} fxg3 {[%emt 0:00:05]} 21. Bxf7+ {[%emt 0:03:37]} Ke7 {[%emt 0:00:11]} 22. b3 {[%emt 0:00:47]} Bc5 {[%emt 0:06:42]} 23. e6 {[%emt 0:04:11]} gxh2 {[%emt 0:01:47]} 24. Bb2 {[%emt 0:01:18]} Nd4 {[%emt 0:04:37]} 25. Rac1 {[%emt 0:00:24]} Bb6 {[%emt 0:07:31]} 26. Bxd4 {[%emt 0:01:54]} Bxd4 {[%emt 0:00:07]} 27. Rc7+ {[%emt 0:00:06]} 1-0

[Event "7th Summer Cup 2024"]
[Site "Rhodes"]
[Date "2024.06.29"]
[Round "8.6"]
[White "Szalay-Ocsak, Bank"]
[Black "Hofstadler, Mario"]
[Result "1-0"]
[ECO "B11"]
[WhiteElo "2279"]
[BlackElo "2103"]
[Annotator "RC"]
[PlyCount "81"]
[EventDate "2024.06.21"]
[EventType "swiss"]
[EventCountry "GRE"]
[SourceTitle "playchess.com"]
[Source "ChessBase"]
[SourceQuality "1"]
[TimeControl "40/5400+30:900+30"]

1. e4 {[%emt 0:02:33]} c6 {[%emt 0:00:57]} 2. Nc3 {[%emt 0:00:42]} d5 {[%emt 0:00:18]} 3. Nf3 {[%emt 0:01:29]} dxe4 {[%emt 0:02:09]} 4. Nxe4 {[%emt 0:00:08]} Nf6 {[%emt 0:00:11]} 5. Qe2 {[%emt 0:00:17]} Nxe4 {[%emt 0:02:09]} 6. Qxe4 {[%emt 0:00:01]} Be6 {[%emt 0:01:36]} 7. Be2 {[%emt 0:05:36]} Nd7 {[%emt 0:02:44]} 8. d4 {[%emt 0:00:59]} Bd5 {[%emt 0:13:30]} 9. Qd3 {[%emt 0:00:20]} Nf6 {[%emt 0:01:45]} 10. O-O {[%emt 0:03:15]} e6 {[%emt 0:10:52]} 11. Re1 {[%emt 0:09:49]} Be4 {[%emt 0:06:29]} 12. Qb3 {[%emt 0:14:57]} Qb6 {[%emt 0:04:15]} 13. c3 {[%emt 0:00:23]} Be7 {[%emt 0:02:38]} 14. Nd2 {[%emt 0:03:06]} Bg6 {[%emt 0:00:54]} 15. Nc4 {[%emt 0:01:04]} Qc7 {[%emt 0:07:14]} 16. Ne5 {[%emt 0:03:30]} Nd7 {[%emt 0:04:49]} 17. Nxg6 {[%emt 0:05:54]} hxg6 {[%emt 0:00:06]} 18. g3 {[%emt 0:00:06]} O-O-O {[%emt 0:03:19]} 19. Bf3 {[%emt 0:01:32]} Qa5 {[%emt 0:09:04]} 20. Qc2 {[%emt 0:08:36]} Bf6 {[%emt 0:05:55]} 21. b4 {[%emt 0:04:45]} Qf5 {[%emt 0:02:05]} 22. Be4 {[%emt 0:08:50]} Qh5 {[%emt 0:02:10]} 23. b5 {[%emt 0:00:51]} Qxb5 {[%emt 0:02:44]} 24. Rb1 {[%emt 0:01:20]} Qa5 {[%emt 0:06:58]} 25. Bf4 {[%emt 0:03:11]} Nb6 {[%emt 0:02:47]} 26. Qb3 {[%emt 0:07:48]} Rh5 {[%emt 0:00:56]} 27. Bd3 {[%emt 0:04:21]} Qa4 {[%emt 0:00:44]} 28. Qb2 {[%emt 0:00:13]} Ra5 {[%emt 0:01:18]} 29. Qe2 {[%emt 0:01:46]} Rad5 {[%emt 0:02:41]} 30. Rb4 {[%emt 0:04:23]} Qa5 {[%emt 0:00:25]} 31. Be4 {[%emt 0:01:02]} Rb5 {[%emt 0:00:42]} 32. Reb1 {[%emt 0:01:05]} Rxb4 {[%emt 0:00:20]} 33. cxb4 {[%emt 0:00:04]} Qh5 {[%emt 0:01:04]} 34. Qc2 {[%emt 0:00:58]} Kd7 {[%emt 0:01:04]} 35. b5 {[%emt 0:00:23]} Rc8 {[%emt 0:00:08]} 36. bxc6+ {[%emt 0:00:34]} bxc6 {[%emt 0:00:03]} 37. Qc5 {[%emt 0:01:24]} Be7 {[%emt 0:00:09]} 38. Qc2 {[%emt 0:01:31]} Qa5 {[%emt 0:01:23]} 39. Bd2 {[%emt 0:00:34]} Qa6 {[%emt 0:00:50]} 40. Bd3 {[%emt 0:00:00]} Qa4 {[%emt 0:00:00]} 41. Rxb6 {[%emt 0:02:47]} 1-0

[Event "7th Summer Cup 2024"]
[Site "Rhodes"]
[Date "2024.06.29"]
[Round "8.7"]
[White "Sandalakis, Nikolaos"]
[Black "Ghaith Saeed Alnuaimi"]
[Result "1-0"]
[ECO "B45"]
[WhiteElo "2229"]
[BlackElo "1799"]
[Annotator "RC"]
[PlyCount "93"]
[EventDate "2024.06.21"]
[EventType "swiss"]
[EventCountry "GRE"]
[SourceTitle "playchess.com"]
[Source "ChessBase"]
[SourceQuality "1"]
[TimeControl "40/5400+30:900+30"]

1. e4 {[%emt 0:00:03]} c5 {[%emt 0:07:04]} 2. Nf3 {[%emt 0:00:04]} Nc6 {[%emt 0:00:06]} 3. d4 {[%emt 0:00:34]} cxd4 {[%emt 0:00:07]} 4. Nxd4 {[%emt 0:00:04]} Nf6 {[%emt 0:00:08]} 5. Nc3 {[%emt 0:00:07]} e6 {[%emt 0:00:04]} 6. Ndb5 {[%emt 0:00:59]} Bb4 {[%emt 0:01:04]} 7. a3 {[%emt 0:00:16]} Bxc3+ {[%emt 0:00:06]} 8. Nxc3 {[%emt 0:00:04]} d5 {[%emt 0:00:06]} 9. exd5 {[%emt 0:00:09]} exd5 {[%emt 0:00:06]} 10. Bd3 {[%emt 0:00:27]} O-O {[%emt 0:00:07]} 11. O-O {[%emt 0:00:10]} d4 {[%emt 0:00:04]} 12. Ne2 {[%emt 0:00:42]} Bg4 {[%emt 0:00:06]} 13. Bg5 {[%emt 0:00:23]} h6 {[%emt 0:00:07]} 14. Bh4 {[%emt 0:02:39]} Bxe2 {[%emt 0:00:09]} 15. Bxe2 {[%emt 0:06:09]} Re8 {[%emt 0:01:18]} 16. Re1 {[%emt 0:06:30]} Re4 {[%emt 0:01:44]} 17. Bg3 {[%emt 0:03:03]} Qb6 {[%emt 0:00:08]} 18. b3 {[%emt 0:15:14]} Rae8 {[%emt 0:06:03]} 19. Qd2 {[%emt 0:01:53]} R4e7 {[%emt 0:27:36]} 20. Bd3 {[%emt 0:15:27]} Ne4 {[%emt 0:02:42]} 21. Bxe4 {[%emt 0:02:18]} Rxe4 {[%emt 0:00:02]} 22. Rxe4 {[%emt 0:03:39]} Rxe4 {[%emt 0:00:05]} 23. f3 {[%emt 0:03:37]} Re6 {[%emt 0:02:38]} 24. Bf2 {[%emt 0:05:18]} Qc5 {[%emt 0:00:15]} 25. Qd3 {[%emt 0:07:35]} Rg6 {[%emt 0:09:44]} 26. h4 {[%emt 0:04:50]} Qd5 {[%emt 0:20:33]} 27. Kh1 {[%emt 0:01:45]} a5 {[%emt 0:01:46]} 28. Re1 {[%emt 0:06:54]} Re6 {[%emt 0:01:12]} 29. Rxe6 {[%emt 0:03:40]} fxe6 {[%emt 0:01:36]} 30. Kg1 {[%emt 0:01:04]} Kf7 {[%emt 0:01:43]} 31. Kf1 {[%emt 0:00:42]} Qc5 {[%emt 0:03:18]} 32. a4 {[%emt 0:03:26]} Qa3 {[%emt 0:07:50]} 33. Kg1 {[%emt 0:01:33]} Qc1+ {[%emt 0:00:55]} 34. Kh2 {[%emt 0:00:07]} Qf4+ {[%emt 0:00:36]} 35. Bg3 {[%emt 0:00:07]} Qf5 {[%emt 0:01:00]} 36. Qc4 {[%emt 0:01:18]} Qd5 {[%emt 0:01:12]} 37. Qxd5 {[%emt 0:03:36]} exd5 {[%emt 0:00:06]} 38. Be1 {[%emt 0:00:22]} Ke6 {[%emt 0:02:45]} 39. Kg3 {[%emt 0:01:23]} Ke5 {[%emt 0:00:23]} 40. Kf2 {[%emt 0:00:00]} g5 {[%emt 0:00:00]} 41. h5 {[%emt 0:10:25]} Kd6 {[%emt 0:06:13]} 42. Ke2 {[%emt 0:00:35]} b6 {[%emt 0:02:16]} 43. Bg3+ {[%emt 0:01:19]} Kc5 {[%emt 0:01:43]} 44. f4 {[%emt 0:01:09]} g4 {[%emt 0:02:37]} 45. f5 {[%emt 0:00:21]} Nd8 {[%emt 0:00:02]} 46. Bf4 {[%emt 0:00:45]} Nf7 {[%emt 0:00:06]} 47. Kd3 {[%emt 0:00:17]} 1-0

[Event "7th Summer Cup 2024"]
[Site "Rhodes"]
[Date "2024.06.29"]
[Round "8.8"]
[White "Gelle, Istvan"]
[Black "Grapsa, Georgia"]
[Result "0-1"]
[ECO "A47"]
[WhiteElo "2163"]
[BlackElo "1979"]
[Annotator "RC"]
[PlyCount "92"]
[EventDate "2024.06.21"]
[EventType "swiss"]
[EventCountry "GRE"]
[SourceTitle "playchess.com"]
[Source "ChessBase"]
[SourceQuality "1"]
[TimeControl "40/5400+30:900+30"]

1. d4 {[%emt 0:00:02]} Nf6 {[%emt 0:00:15]} 2. Nf3 {[%emt 0:00:09]} b6 {[%emt 0:00:30]} 3. Bf4 {[%emt 0:00:10]} e6 {[%emt 0:00:04]} 4. e3 {[%emt 0:00:09]} Be7 {[%emt 0:00:07]} 5. h3 {[%emt 0:00:31]} O-O {[%emt 1:32:04]} 6. Nbd2 {[%emt 0:02:04]} c5 {[%emt 0:00:30]} 7. a4 {[%emt 1:30:55]} cxd4 {[%emt 0:00:00]} 8. exd4 {[%emt 0:00:00]} Ba6 {[%emt 0:00:00]} 9. Bxa6 {[%emt 0:00:00]} Nxa6 {[%emt 0:00:00]} 10. c3 {[%emt 0:00:00]} d6 {[%emt 0:02:00]} 11. O-O {[%emt 0:02:00]} Qd7 {[%emt 0:00:30]} 12. Qe2 {[%emt 0:00:00]} Nc7 {[%emt 0:00:30]} 13. Nc4 {[%emt 0:00:00]} h6 {[%emt 0:00:00]} 14. Nfd2 {[%emt 0:01:30]} Qc6 {[%emt 0:00:00]} 15. g4 {[%emt 0:00:30]} Nfd5 {[%emt 0:00:00]} 16. Bg3 {[%emt 0:00:00]} f5 {[%emt 0:00:00]} 17. f4 {[%emt 0:01:00]} Rae8 {[%emt 0:02:30]} 18. Kh2 {[%emt 0:00:00]} Rf7 {[%emt 0:00:30]} 19. g5 {[%emt 0:00:00]} hxg5 {[%emt 0:00:00]} 20. fxg5 {[%emt 0:01:30]} f4 {[%emt 0:01:00]} 21. Bh4 {[%emt 0:00:30]} Rf5 {[%emt 0:00:00]} 22. Qh5 {[%emt 0:00:00]} Ref8 {[%emt 0:00:00]} 23. Rf2 {[%emt 0:01:00]} Ne3 {[%emt 0:01:30]} 24. Qe2 {[%emt 0:00:30]} Bxg5 {[%emt 0:00:00]} 25. Bxg5 {[%emt 0:00:00]} Rxg5 {[%emt 0:01:00]} 26. Nxe3 {[%emt 0:01:00]} fxe3 {[%emt 0:00:30]} 27. Qxe3 {[%emt 0:00:00]} Rxf2+ 28. Qxf2 {[%emt 0:00:00]} Qd5 29. Qf3 {[%emt 0:01:30]} Rf5 {[%emt 0:00:00]} 30. Qxd5 {[%emt 0:00:00]} Nxd5 {[%emt 0:00:00]} 31. Nc4 {[%emt 0:00:00]} Nf6 {[%emt 0:00:00]} 32. Nxd6 {[%emt 0:00:00]} Rf2+ {[%emt 0:03:00]} 33. Kg3 {[%emt 0:00:00]} Rxb2 34. Nb5 {[%emt 0:00:00]} Rb3 35. Kf4 {[%emt 0:03:00]} a6 {[%emt 0:01:30]} 36. Ra3 {[%emt 0:00:30]} Rxa3 {[%emt 0:00:30]} 37. Nxa3 {[%emt 0:00:30]} Nd5+ {[%emt 0:00:30]} 38. Ke5 {[%emt 0:00:30]} Kf7 {[%emt 0:00:30]} 39. c4 {[%emt 0:00:00]} Nc3 {[%emt 0:00:00]} 40. a5 {[%emt 0:00:00]} bxa5 {[%emt 0:00:00]} 41. Kd6 {[%emt 0:02:28]} Ne2 {[%emt 0:16:30]} 42. d5 {[%emt 0:09:57]} exd5 {[%emt 0:00:00]} 43. c5 {[%emt 0:01:43]} Nd4 {[%emt 0:00:00]} 44. Kxd5 {[%emt 0:00:25]} Nb5 {[%emt 0:00:00]} 45. Nxb5 {[%emt 0:02:01]} axb5 {[%emt 0:00:00]} 46. Kd6 {[%emt 0:01:01]} Ke8 {[%emt 0:00:00]} 0-1

[Event "7th Summer Cup 2024"]
[Site "Rhodes"]
[Date "2024.06.29"]
[Round "8.9"]
[White "Girard, Adrien"]
[Black "Seres, Bela"]
[Result "0-1"]
[ECO "B07"]
[WhiteElo "1828"]
[BlackElo "2126"]
[Annotator "RC"]
[PlyCount "66"]
[EventDate "2024.06.21"]
[EventType "swiss"]
[EventCountry "GRE"]
[SourceTitle "playchess.com"]
[Source "ChessBase"]
[SourceQuality "1"]
[TimeControl "40/5400+30:900+30"]

1. e4 {[%emt 0:00:03]} c5 {[%emt 0:00:06]} 2. c3 {[%emt 0:00:04]} d6 {[%emt 0:00:13]} 3. d4 {[%emt 0:00:06]} Nf6 {[%emt 0:00:11]} 4. Bd3 {[%emt 0:00:11]} cxd4 {[%emt 0:01:04]} 5. cxd4 {[%emt 0:00:10]} e5 {[%emt 0:00:17]} 6. dxe5 {[%emt 0:03:33]} dxe5 {[%emt 0:00:42]} 7. Bb5+ {[%emt 0:02:24]} Bd7 {[%emt 0:01:13]} 8. Bxd7+ {[%emt 0:00:12]} Nbxd7 {[%emt 0:00:02]} 9. Bg5 {[%emt 0:05:35]} Qa5+ {[%emt 0:05:43]} 10. Bd2 {[%emt 0:01:24]} Qb6 {[%emt 0:03:23]} 11. Qc2 {[%emt 0:03:38]} Bc5 {[%emt 0:02:46]} 12. Bc3 {[%emt 0:01:06]} O-O {[%emt 0:01:10]} 13. Nf3 {[%emt 0:01:58]} Rac8 {[%emt 0:00:22]} 14. Qe2 {[%emt 0:01:05]} Bd4 {[%emt 0:08:09]} 15. O-O {[%emt 0:04:28]} Rfd8 {[%emt 0:01:44]} 16. Bxd4 {[%emt 0:13:00]} exd4 {[%emt 0:00:33]} 17. Na3 {[%emt 0:00:06]} Nc5 {[%emt 0:04:54]} 18. e5 {[%emt 0:03:10]} d3 {[%emt 0:00:49]} 19. Qe1 {[%emt 0:06:17]} Nfe4 {[%emt 0:07:50]} 20. Nc4 {[%emt 0:01:12]} Qa6 {[%emt 0:04:33]} 21. Ncd2 {[%emt 0:00:49]} Nxd2 {[%emt 0:11:09]} 22. Qxd2 {[%emt 0:04:33]} Rd5 {[%emt 0:01:59]} 23. Rac1 {[%emt 0:04:01]} Rcd8 {[%emt 0:01:18]} 24. Qb4 {[%emt 0:04:58]} b6 {[%emt 0:15:14]} 25. Rfd1 {[%emt 0:08:07]} d2 {[%emt 0:07:31]} 26. Rc2 {[%emt 0:12:48]} Qxa2 {[%emt 0:01:54]} 27. Rcxd2 {[%emt 0:01:08]} Rxd2 {[%emt 0:00:23]} 28. Nxd2 {[%emt 0:00:17]} Qb3 {[%emt 0:01:18]} 29. Qg4 {[%emt 0:01:42]} Qc2 {[%emt 0:01:17]} 30. Kf1 {[%emt 0:04:01]} Nb3 {[%emt 0:05:48]} 31. Ke1 {[%emt 0:00:22]} Rxd2 {[%emt 0:00:29]} 32. Rxd2 {[%emt 0:01:24]} Qxd2+ {[%emt 0:01:35]} 33. Kf1 {[%emt 0:00:01]} Qc1+ {[%emt 0:01:11]} 0-1